[Event "Titled Tuesday Blitz February 14 Late 2023"]
[White "Cori T., Deysi"]
[Black "Sonnenschein, Philipp"]
[WhiteFideId "3801934"]
[BlackFideId "16250877"]
[WhiteElo "2362"]
[BlackElo "2224"]
[Result "0-1"]
[Round "08"]
[TimeControl "180+2"]
[Date "2023.02.14"]
[WhiteClock "0:00:49"]
[BlackClock "0:01:55"]

1. d4 {[%clk 0:02:44]}  Nf6 {[%clk 0:02:59]} 2. Nf3 {[%clk 0:02:40]}  d5 {[%clk 0:02:59]} 3. c4 {[%clk 0:02:39]}  e6 {[%clk 0:03:00]} 4. Nc3 {[%clk 0:02:38]}  Bb4 {[%clk 0:03:00]} 5. e3 {[%clk 0:02:36]}  O-O {[%clk 0:02:59]} 6. a3 {[%clk 0:02:36]}  Bxc3+ {[%clk 0:02:56]} 7. bxc3 {[%clk 0:02:37]}  c5 {[%clk 0:02:57]} 8. Qc2 {[%clk 0:02:35]}  b6 {[%clk 0:02:50]} 9. a4 {[%clk 0:02:27]}  Bb7 {[%clk 0:02:49]} 10. a5 {[%clk 0:02:24]}  Nbd7 {[%clk 0:02:36]} 11. Ba3 {[%clk 0:02:20]}  Re8 {[%clk 0:02:33]} 12. Bd3 {[%clk 0:02:13]}  dxc4 {[%clk 0:02:33]} 13. Bxc4 {[%clk 0:02:13]}  Rc8 {[%clk 0:02:27]} 14. Qe2 {[%clk 0:02:07]}  cxd4 {[%clk 0:02:19]} 15. cxd4 {[%clk 0:02:08]}  Qc7 {[%clk 0:02:19]} 16. Rc1 {[%clk 0:02:06]}  b5 {[%clk 0:02:03]} 17. O-O {[%clk 0:00:50]}  bxc4 {[%clk 0:02:01]} 18. Nd2 {[%clk 0:00:50]}  Qxa5 {[%clk 0:01:55]} 19. Bd6 {[%clk 0:00:49]} 0-1


[Site "https://www.chess.com"]

[Event "Titled Tuesday Blitz February 14 Late 2023"]
[White "O`Gorman, Tom"]
[Black "Tworuszka, Michal"]
[WhiteFideId "2508249"]
[BlackFideId "1117858"]
[WhiteElo "2355"]
[BlackElo "2260"]
[Result "1-0"]
[Round "08"]
[TimeControl "180+2"]
[Date "2023.02.14"]
[WhiteClock "0:02:33"]
[BlackClock "0:01:41"]

1. e4 {[%clk 0:03:00]}  e5 {[%clk 0:02:56]} 2. Nf3 {[%clk 0:03:01]}  Nc6 {[%clk 0:02:56]} 3. Bb5 {[%clk 0:03:00]}  Nf6 {[%clk 0:02:55]} 4. O-O {[%clk 0:03:00]}  Nxe4 {[%clk 0:02:53]} 5. Re1 {[%clk 0:03:00]}  Nd6 {[%clk 0:02:53]} 6. Nxe5 {[%clk 0:03:01]}  Be7 {[%clk 0:02:51]} 7. Bf1 {[%clk 0:02:59]}  Nxe5 {[%clk 0:02:50]} 8. Rxe5 {[%clk 0:02:59]}  O-O {[%clk 0:02:50]} 9. Nc3 {[%clk 0:03:00]}  Ne8 {[%clk 0:02:48]} 10. Nd5 {[%clk 0:02:59]}  Bd6 {[%clk 0:02:45]} 11. Re1 {[%clk 0:02:59]}  c6 {[%clk 0:02:45]} 12. Ne3 {[%clk 0:02:59]}  Bc7 {[%clk 0:02:44]} 13. Nf5 {[%clk 0:03:00]}  d5 {[%clk 0:02:42]} 14. Ne7+ {[%clk 0:03:00]}  Kh8 {[%clk 0:02:41]} 15. Nxc8 {[%clk 0:03:01]}  Rxc8 {[%clk 0:02:41]} 16. d4 {[%clk 0:03:02]}  Qf6 {[%clk 0:02:23]} 17. Qg4 {[%clk 0:02:54]}  Nd6 {[%clk 0:02:21]} 18. Bd3 {[%clk 0:02:49]}  Rce8 {[%clk 0:02:14]} 19. Bg5 {[%clk 0:02:40]}  Qe6 {[%clk 0:01:42]} 20. Rxe6 {[%clk 0:02:37]}  fxe6 {[%clk 0:01:41]} 21. Bf4 {[%clk 0:02:33]} 1-0


[Site "https://www.chess.com"]

[Event "Titled Tuesday Blitz February 14 Late 2023"]
[White "Pasti, Aron"]
[Black "Toncheva, Nadya"]
[WhiteFideId "785857"]
[BlackFideId "2924056"]
[WhiteElo "2361"]
[BlackElo "2295"]
[Result "0-1"]
[Round "08"]
[TimeControl "180+2"]
[Date "2023.02.14"]
[WhiteClock "0:00:04"]
[BlackClock "0:00:09"]

1. e4 {[%clk 0:03:00]}  c5 {[%clk 0:02:59]} 2. Nf3 {[%clk 0:03:00]}  Nc6 {[%clk 0:02:59]} 3. d4 {[%clk 0:03:00]}  cxd4 {[%clk 0:03:00]} 4. Nxd4 {[%clk 0:03:01]}  g6 {[%clk 0:03:01]} 5. c4 {[%clk 0:03:01]}  Bg7 {[%clk 0:03:02]} 6. Be3 {[%clk 0:03:02]}  Nf6 {[%clk 0:03:02]} 7. Nc3 {[%clk 0:03:02]}  O-O {[%clk 0:03:03]} 8. Be2 {[%clk 0:03:02]}  d6 {[%clk 0:03:04]} 9. O-O {[%clk 0:03:03]}  Bd7 {[%clk 0:03:04]} 10. Rc1 {[%clk 0:03:03]}  Nxd4 {[%clk 0:03:04]} 11. Bxd4 {[%clk 0:03:04]}  Bc6 {[%clk 0:03:04]} 12. Qd3 {[%clk 0:03:05]}  a5 {[%clk 0:03:04]} 13. b3 {[%clk 0:03:05]}  Nd7 {[%clk 0:03:03]} 14. Bxg7 {[%clk 0:03:06]}  Kxg7 {[%clk 0:03:04]} 15. Qd2 {[%clk 0:03:07]}  Nc5 {[%clk 0:03:00]} 16. Nd5 {[%clk 0:02:46]}  Nxe4 {[%clk 0:02:42]} 17. Qd4+ {[%clk 0:02:44]}  Nf6 {[%clk 0:02:43]} 18. Nxf6 {[%clk 0:02:45]}  exf6 {[%clk 0:02:43]} 19. Rfd1 {[%clk 0:02:39]}  Re8 {[%clk 0:02:43]} 20. Rc2 {[%clk 0:02:13]}  Re6 {[%clk 0:02:31]} 21. h3 {[%clk 0:01:59]}  Qe7 {[%clk 0:02:25]} 22. Bg4 {[%clk 0:01:59]}  Re1+ {[%clk 0:02:19]} 23. Kh2 {[%clk 0:01:44]}  Rxd1 {[%clk 0:02:03]} 24. Qxd1 {[%clk 0:01:45]}  Qe5+ {[%clk 0:01:58]} 25. Kg1 {[%clk 0:01:45]}  h5 {[%clk 0:01:53]} 26. Bf3 {[%clk 0:01:41]}  Qf4 {[%clk 0:00:59]} 27. Bxc6 {[%clk 0:01:32]}  bxc6 {[%clk 0:01:00]} 28. Rd2 {[%clk 0:01:30]}  Rd8 {[%clk 0:00:58]} 29. Rd4 {[%clk 0:01:30]}  Qe5 {[%clk 0:00:56]} 30. Qd2 {[%clk 0:01:25]}  d5 {[%clk 0:00:51]} 31. f4 {[%clk 0:01:22]}  Qe6 {[%clk 0:00:46]} 32. Qxa5 {[%clk 0:01:17]}  Qe3+ {[%clk 0:00:46]} 33. Kh1 {[%clk 0:01:11]}  Re8 {[%clk 0:00:43]} 34. Rd1 {[%clk 0:01:04]}  Qf2 {[%clk 0:00:29]} 35. cxd5 {[%clk 0:00:57]}  Re2 {[%clk 0:00:25]} 36. Rg1 {[%clk 0:00:57]}  Rxa2 {[%clk 0:00:25]} 37. Qd8 {[%clk 0:00:46]}  Rd2 {[%clk 0:00:22]} 38. Qc7 {[%clk 0:00:36]}  cxd5 {[%clk 0:00:20]} 39. b4 {[%clk 0:00:37]}  Rb2 {[%clk 0:00:20]} 40. Qb7 {[%clk 0:00:20]}  Qxf4 {[%clk 0:00:18]} 41. Qxd5 {[%clk 0:00:13]}  Rxb4 {[%clk 0:00:17]} 42. Re1 {[%clk 0:00:11]}  Rd4 {[%clk 0:00:16]} 43. Qb7 {[%clk 0:00:10]}  Qg3 {[%clk 0:00:11]} 44. Rf1 {[%clk 0:00:09]}  Rf4 {[%clk 0:00:10]} 45. Rd1 {[%clk 0:00:07]}  Rf2 {[%clk 0:00:09]} 46. Qd5 {[%clk 0:00:05]}  Re2 {[%clk 0:00:09]} 47. Rg1 {[%clk 0:00:02]}  Re1 {[%clk 0:00:08]} 48. Rxe1 {[%clk 0:00:03]}  Qxe1+ {[%clk 0:00:09]} 49. Kh2 {[%clk 0:00:04]}  Qe5+ {[%clk 0:00:09]} 0-1


[Site "https://www.chess.com"]

[Event "Titled Tuesday Blitz February 14 Late 2023"]
[White "Jeet, Jain"]
[Black "Sztokbant, Bernardo Vainzoff"]
[WhiteFideId "5073022"]
[BlackFideId "2115956"]
[WhiteElo "2199"]
[BlackElo "2213"]
[Result "1/2-1/2"]
[Round "08"]
[TimeControl "180+2"]
[Date "2023.02.14"]
[WhiteClock "0:00:13"]
[BlackClock "0:00:05"]

1. Nf3 {[%clk 0:02:49]}  d5 {[%clk 0:02:59]} 2. e3 {[%clk 0:02:50]}  Nf6 {[%clk 0:03:00]} 3. b3 {[%clk 0:02:50]}  g6 {[%clk 0:03:00]} 4. Bb2 {[%clk 0:02:50]}  Bg7 {[%clk 0:03:00]} 5. c4 {[%clk 0:02:50]}  O-O {[%clk 0:03:00]} 6. Be2 {[%clk 0:02:49]}  c5 {[%clk 0:03:00]} 7. O-O {[%clk 0:02:48]}  Nc6 {[%clk 0:03:00]} 8. d3 {[%clk 0:02:46]}  dxc4 {[%clk 0:02:55]} 9. dxc4 {[%clk 0:02:43]}  Qc7 {[%clk 0:02:54]} 10. Nc3 {[%clk 0:02:41]}  a6 {[%clk 0:02:54]} 11. Qc1 {[%clk 0:02:35]}  Rd8 {[%clk 0:02:51]} 12. Rd1 {[%clk 0:02:29]}  Bg4 {[%clk 0:02:49]} 13. Nd5 {[%clk 0:02:27]}  Nxd5 {[%clk 0:02:45]} 14. cxd5 {[%clk 0:02:26]}  Nb4 {[%clk 0:02:31]} 15. Bxg7 {[%clk 0:02:24]}  Kxg7 {[%clk 0:02:32]} 16. Qc3+ {[%clk 0:02:18]}  Kg8 {[%clk 0:02:32]} 17. e4 {[%clk 0:02:17]}  f5 {[%clk 0:02:06]} 18. exf5 {[%clk 0:02:03]}  Bxf5 {[%clk 0:02:06]} 19. d6 {[%clk 0:01:32]}  Rxd6 {[%clk 0:02:01]} 20. Bc4+ {[%clk 0:01:28]}  e6 {[%clk 0:01:59]} 21. Nh4 {[%clk 0:01:09]}  Rad8 {[%clk 0:01:38]} 22. Re1 {[%clk 0:01:09]}  Nd5 {[%clk 0:01:05]} 23. Qe5 {[%clk 0:01:06]}  Rf8 {[%clk 0:00:49]} 24. Rad1 {[%clk 0:01:01]}  Qd7 {[%clk 0:00:43]} 25. h3 {[%clk 0:00:52]}  b5 {[%clk 0:00:43]} 26. Bf1 {[%clk 0:00:45]}  Qd8 {[%clk 0:00:17]} 27. g3 {[%clk 0:00:40]}  Rd7 {[%clk 0:00:16]} 28. Rc1 {[%clk 0:00:37]}  c4 {[%clk 0:00:07]} 29. bxc4 {[%clk 0:00:37]}  bxc4 {[%clk 0:00:07]} 30. Bxc4 {[%clk 0:00:38]}  Bxh3 {[%clk 0:00:07]} 31. Bxa6 {[%clk 0:00:30]}  Qb6 {[%clk 0:00:07]} 32. Bc4 {[%clk 0:00:19]}  Qxf2+ {[%clk 0:00:06]} 33. Kh1 {[%clk 0:00:20]}  Rdf7 {[%clk 0:00:05]} 34. Re2 {[%clk 0:00:19]}  Qc5 {[%clk 0:00:02]} 35. Ree1 {[%clk 0:00:17]}  Qf2 {[%clk 0:00:02]} 36. Bxd5 {[%clk 0:00:17]}  exd5 {[%clk 0:00:01]} 37. Qxd5 {[%clk 0:00:17]}  Qxg3 {[%clk 0:00:01]} 38. Qe4 {[%clk 0:00:15]}  Bg4 {[%clk 0:00:01]} 39. Ng2 {[%clk 0:00:15]}  Qh3+ {[%clk 0:00:01]} 40. Kg1 {[%clk 0:00:15]}  Qg3 {[%clk 0:00:01]} 41. Rc2 {[%clk 0:00:13]}  Bf3 {[%clk 0:00:01]} 42. Qe5 {[%clk 0:00:12]}  Qxe5 {[%clk 0:00:01]} 43. Rxe5 {[%clk 0:00:13]}  Bxg2 {[%clk 0:00:01]} 44. Rxg2 {[%clk 0:00:14]}  Rf6 {[%clk 0:00:01]} 45. a4 {[%clk 0:00:14]}  R8f7 {[%clk 0:00:02]} 46. a5 {[%clk 0:00:14]}  Kg7 {[%clk 0:00:02]} 47. Ra2 {[%clk 0:00:14]}  Ra7 {[%clk 0:00:03]} 48. Kg2 {[%clk 0:00:14]}  Rf5 {[%clk 0:00:03]} 49. Rxf5 {[%clk 0:00:13]}  gxf5 {[%clk 0:00:04]} 50. Kf3 {[%clk 0:00:14]}  Kf6 {[%clk 0:00:05]} 51. Kf4 {[%clk 0:00:14]}  h6 {[%clk 0:00:04]} 52. Rh2 {[%clk 0:00:14]}  Kg6 {[%clk 0:00:04]} 53. Ra2 {[%clk 0:00:14]}  Ra6 {[%clk 0:00:04]} 54. Rg2+ {[%clk 0:00:13]}  Kf6 {[%clk 0:00:04]} 55. Rh2 {[%clk 0:00:14]}  Kg6 {[%clk 0:00:04]} 56. Rg2+ {[%clk 0:00:14]}  Kf6 {[%clk 0:00:03]} 57. Rh2 {[%clk 0:00:14]}  Ke7 {[%clk 0:00:03]} 58. Kxf5 {[%clk 0:00:12]}  Rxa5+ {[%clk 0:00:03]} 59. Kg6 {[%clk 0:00:13]}  Ra6+ {[%clk 0:00:03]} 60. Kh7 {[%clk 0:00:12]}  Re6 {[%clk 0:00:04]} 61. Rxh6 {[%clk 0:00:12]}  Rxh6+ {[%clk 0:00:05]} 62. Kxh6 {[%clk 0:00:13]} 1/2-1/2


[Site "https://www.chess.com"]

[Event "Titled Tuesday Blitz February 14 Late 2023"]
[White "Machidon, Cristi"]
[Black "Benmesbah, Natacha"]
[WhiteFideId "13904590"]
[BlackFideId "642002"]
[WhiteElo "2301"]
[BlackElo "2261"]
[Result "1-0"]
[Round "08"]
[TimeControl "180+2"]
[Date "2023.02.14"]
[WhiteClock "0:00:13"]
[BlackClock "0:00:32"]

1. e4 {[%clk 0:03:00]}  d6 {[%clk 0:02:57]} 2. d4 {[%clk 0:03:00]}  Nf6 {[%clk 0:02:55]} 3. Nc3 {[%clk 0:03:00]}  e5 {[%clk 0:02:51]} 4. dxe5 {[%clk 0:02:59]}  dxe5 {[%clk 0:02:51]} 5. Qxd8+ {[%clk 0:03:00]}  Kxd8 {[%clk 0:02:52]} 6. Bc4 {[%clk 0:03:00]}  Ke8 {[%clk 0:02:52]} 7. Bg5 {[%clk 0:02:46]}  Nbd7 {[%clk 0:02:47]} 8. Nb5 {[%clk 0:02:39]}  Bd6 {[%clk 0:02:45]} 9. Nxd6+ {[%clk 0:02:38]}  cxd6 {[%clk 0:02:44]} 10. f3 {[%clk 0:02:36]}  Ke7 {[%clk 0:02:41]} 11. O-O-O {[%clk 0:02:34]}  h6 {[%clk 0:02:33]} 12. Be3 {[%clk 0:02:29]}  a6 {[%clk 0:02:25]} 13. a4 {[%clk 0:02:12]}  b6 {[%clk 0:02:24]} 14. Ne2 {[%clk 0:02:07]}  Bb7 {[%clk 0:02:24]} 15. h4 {[%clk 0:01:59]}  Rac8 {[%clk 0:02:16]} 16. b3 {[%clk 0:01:58]}  Nc5 {[%clk 0:02:05]} 17. Ng3 {[%clk 0:01:53]}  g6 {[%clk 0:02:03]} 18. h5 {[%clk 0:01:53]}  Nxa4 {[%clk 0:01:55]} 19. hxg6 {[%clk 0:01:53]}  fxg6 {[%clk 0:01:52]} 20. Bxh6 {[%clk 0:01:48]}  b5 {[%clk 0:01:49]} 21. Bd3 {[%clk 0:01:46]}  Nc5 {[%clk 0:01:48]} 22. Kb2 {[%clk 0:01:27]}  Ke6 {[%clk 0:01:20]} 23. Be2 {[%clk 0:01:19]}  Rh7 {[%clk 0:01:17]} 24. Bg5 {[%clk 0:01:16]}  Rch8 {[%clk 0:01:14]} 25. Rxh7 {[%clk 0:01:10]}  Rxh7 {[%clk 0:01:13]} 26. Bxf6 {[%clk 0:01:10]}  Kxf6 {[%clk 0:01:11]} 27. Rxd6+ {[%clk 0:01:10]}  Ne6 {[%clk 0:01:05]} 28. c4 {[%clk 0:01:01]}  Rh2 {[%clk 0:00:57]} 29. Bf1 {[%clk 0:00:57]}  bxc4 {[%clk 0:00:54]} 30. Bxc4 {[%clk 0:00:44]}  Rxg2+ {[%clk 0:00:53]} 31. Ka3 {[%clk 0:00:44]}  Rxg3 {[%clk 0:00:49]} 32. Rxe6+ {[%clk 0:00:44]}  Kg5 {[%clk 0:00:49]} 33. Rxe5+ {[%clk 0:00:45]}  Kf4 {[%clk 0:00:48]} 34. Re7 {[%clk 0:00:44]}  Bc8 {[%clk 0:00:45]} 35. Rf7+ {[%clk 0:00:42]}  Ke3 {[%clk 0:00:45]} 36. e5 {[%clk 0:00:40]}  Rxf3 {[%clk 0:00:45]} 37. e6 {[%clk 0:00:39]}  g5 {[%clk 0:00:41]} 38. Bd5 {[%clk 0:00:22]}  Rf4 {[%clk 0:00:37]} 39. e7 {[%clk 0:00:20]}  Bd7 {[%clk 0:00:36]} 40. Rf8 {[%clk 0:00:18]}  g4 {[%clk 0:00:36]} 41. e8=Q+ {[%clk 0:00:17]}  Bxe8 {[%clk 0:00:36]} 42. Rxe8+ {[%clk 0:00:18]}  Kd4 {[%clk 0:00:36]} 43. Bc4 {[%clk 0:00:17]}  g3 {[%clk 0:00:37]} 44. Rg8 {[%clk 0:00:16]}  Rf3 {[%clk 0:00:37]} 45. Bxa6 {[%clk 0:00:16]}  Re3 {[%clk 0:00:36]} 46. Bb7 {[%clk 0:00:16]}  Kc5 {[%clk 0:00:35]} 47. Rg6 {[%clk 0:00:15]}  Rd3 {[%clk 0:00:33]} 48. Ka4 {[%clk 0:00:15]}  Rd4+ {[%clk 0:00:33]} 49. Ka5 {[%clk 0:00:15]}  Rd1 {[%clk 0:00:32]} 50. b4+ {[%clk 0:00:14]}  Kc4 {[%clk 0:00:32]} 51. Rg4+ {[%clk 0:00:13]} 1-0


[Site "https://www.chess.com"]

[Event "Titled Tuesday Blitz February 14 Late 2023"]
[White "Di Berardino, Diego Rafael"]
[Black "Grot, Blazej"]
[WhiteFideId "2105446"]
[BlackFideId "21835845"]
[WhiteElo "2479"]
[BlackElo "1990"]
[Result "1-0"]
[Round "08"]
[TimeControl "180+2"]
[Date "2023.02.14"]
[WhiteClock "0:00:07"]
[BlackClock "0:00:02"]

1. d4 {[%clk 0:03:00]}  d5 {[%clk 0:02:58]} 2. Nf3 {[%clk 0:03:00]}  Nf6 {[%clk 0:02:57]} 3. e3 {[%clk 0:03:00]}  c6 {[%clk 0:02:56]} 4. Bd3 {[%clk 0:03:00]}  e6 {[%clk 0:02:54]} 5. O-O {[%clk 0:02:59]}  Bd6 {[%clk 0:02:54]} 6. Nbd2 {[%clk 0:02:58]}  O-O {[%clk 0:02:54]} 7. Qe2 {[%clk 0:02:58]}  Qc7 {[%clk 0:02:54]} 8. e4 {[%clk 0:02:58]}  dxe4 {[%clk 0:02:54]} 9. Nxe4 {[%clk 0:02:58]}  Nxe4 {[%clk 0:02:55]} 10. Qxe4 {[%clk 0:02:59]}  f5 {[%clk 0:02:53]} 11. Qe2 {[%clk 0:02:58]}  Qf7 {[%clk 0:02:46]} 12. Re1 {[%clk 0:02:52]}  Re8 {[%clk 0:02:46]} 13. Bc4 {[%clk 0:02:48]}  h6 {[%clk 0:02:42]} 14. Ne5 {[%clk 0:02:43]}  Bxe5 {[%clk 0:02:42]} 15. Qxe5 {[%clk 0:02:43]}  Nd7 {[%clk 0:02:42]} 16. Qxe6 {[%clk 0:02:20]}  Qxe6 {[%clk 0:02:30]} 17. Rxe6 {[%clk 0:02:19]}  Kf8 {[%clk 0:02:24]} 18. Bf4 {[%clk 0:02:18]}  Rxe6 {[%clk 0:02:21]} 19. Bxe6 {[%clk 0:02:17]}  Nf6 {[%clk 0:02:18]} 20. Bb3 {[%clk 0:02:03]}  Nd5 {[%clk 0:02:09]} 21. Bd6+ {[%clk 0:01:49]}  Kf7 {[%clk 0:02:05]} 22. c4 {[%clk 0:01:43]}  Nf6 {[%clk 0:02:04]} 23. Be5 {[%clk 0:01:20]}  Ng4 {[%clk 0:01:19]} 24. Bc7 {[%clk 0:01:10]}  Be6 {[%clk 0:01:12]} 25. f3 {[%clk 0:01:09]}  Nf6 {[%clk 0:01:11]} 26. Rd1 {[%clk 0:00:59]}  Rc8 {[%clk 0:01:09]} 27. Be5 {[%clk 0:00:42]}  Nd7 {[%clk 0:01:05]} 28. Bf4 {[%clk 0:00:37]}  g5 {[%clk 0:01:04]} 29. Be3 {[%clk 0:00:32]}  f4 {[%clk 0:00:58]} 30. Bf2 {[%clk 0:00:31]}  Nf6 {[%clk 0:00:55]} 31. g4 {[%clk 0:00:24]}  fxg3 {[%clk 0:00:50]} 32. hxg3 {[%clk 0:00:23]}  Re8 {[%clk 0:00:49]} 33. d5 {[%clk 0:00:13]}  Bd7 {[%clk 0:00:40]} 34. Bxa7 {[%clk 0:00:11]}  g4 {[%clk 0:00:37]} 35. Rf1 {[%clk 0:00:07]}  gxf3 {[%clk 0:00:32]} 36. Rxf3 {[%clk 0:00:08]}  Kg6 {[%clk 0:00:30]} 37. Bc2+ {[%clk 0:00:07]}  Kg5 {[%clk 0:00:19]} 38. Be3+ {[%clk 0:00:07]}  Kg4 {[%clk 0:00:19]} 39. Bd1 {[%clk 0:00:05]}  Kh3 {[%clk 0:00:04]} 40. Kf2 {[%clk 0:00:03]}  Ng4+ {[%clk 0:00:04]} 41. Ke2 {[%clk 0:00:03]}  Bf5 {[%clk 0:00:03]} 42. Kd2 {[%clk 0:00:02]}  Be4 {[%clk 0:00:03]} 43. Rf4 {[%clk 0:00:02]}  Nxe3 {[%clk 0:00:03]} 44. Kxe3 {[%clk 0:00:02]}  Bxd5+ {[%clk 0:00:03]} 45. Kd4 {[%clk 0:00:02]}  Bg8 {[%clk 0:00:02]} 46. Rh4+ {[%clk 0:00:03]}  Kg2 {[%clk 0:00:03]} 47. Rxh6 {[%clk 0:00:03]}  Rd8+ {[%clk 0:00:03]} 48. Kc3 {[%clk 0:00:03]}  Rxd1 {[%clk 0:00:04]} 49. Rg6 {[%clk 0:00:03]}  Rc1+ {[%clk 0:00:04]} 50. Kd2 {[%clk 0:00:03]}  Rxc4 {[%clk 0:00:04]} 51. Rxg8 {[%clk 0:00:04]}  Kf3 {[%clk 0:00:03]} 52. b3 {[%clk 0:00:03]}  Rd4+ {[%clk 0:00:03]} 53. Kc3 {[%clk 0:00:04]}  Rd5 {[%clk 0:00:04]} 54. a4 {[%clk 0:00:04]}  b5 {[%clk 0:00:03]} 55. a5 {[%clk 0:00:04]}  Rd7 {[%clk 0:00:02]} 56. b4 {[%clk 0:00:04]}  Ke4 {[%clk 0:00:02]} 57. Rg6 {[%clk 0:00:04]}  Kd5 {[%clk 0:00:02]} 58. g4 {[%clk 0:00:04]}  Rf7 {[%clk 0:00:02]} 59. Kd3 {[%clk 0:00:03]}  Rf3+ {[%clk 0:00:02]} 60. Kc2 {[%clk 0:00:03]}  Rg3 {[%clk 0:00:03]} 61. Kb2 {[%clk 0:00:03]}  Kc4 {[%clk 0:00:03]} 62. a6 {[%clk 0:00:03]}  Kxb4 {[%clk 0:00:03]} 63. a7 {[%clk 0:00:04]}  Ra3 {[%clk 0:00:03]} 64. Rg7 {[%clk 0:00:04]}  c5 {[%clk 0:00:03]} 65. Rb7 {[%clk 0:00:04]}  Ra5 {[%clk 0:00:02]} 66. g5 {[%clk 0:00:04]}  c4 {[%clk 0:00:02]} 67. g6 {[%clk 0:00:04]}  c3+ {[%clk 0:00:02]} 68. Kc2 {[%clk 0:00:05]}  Ra2+ {[%clk 0:00:03]} 69. Kd3 {[%clk 0:00:05]}  Rd2+ {[%clk 0:00:02]} 70. Ke3 {[%clk 0:00:06]}  Ra2 {[%clk 0:00:02]} 71. g7 {[%clk 0:00:06]}  c2 {[%clk 0:00:02]} 72. Kd2 {[%clk 0:00:06]}  Ra1 {[%clk 0:00:01]} 73. Kxc2 {[%clk 0:00:06]}  Ra2+ {[%clk 0:00:01]} 74. Kd3 {[%clk 0:00:06]}  Ra3+ {[%clk 0:00:01]} 75. Ke4 {[%clk 0:00:06]}  Ra1 {[%clk 0:00:01]} 76. g8=Q {[%clk 0:00:06]}  Re1+ {[%clk 0:00:02]} 77. Kd3 {[%clk 0:00:07]} 1-0


[Site "https://www.chess.com"]

[Event "Titled Tuesday Blitz February 14 Late 2023"]
[White "Dinu, Dumitru-Daniel"]
[Black "Baghdasaryan, Vahe"]
[WhiteFideId "1208403"]
[BlackFideId "13303139"]
[WhiteElo "2203"]
[BlackElo "2257"]
[Result "0-1"]
[Round "08"]
[TimeControl "180+2"]
[Date "2023.02.14"]
[WhiteClock "0:00:01"]
[BlackClock "0:00:08"]

1. e4 {[%clk 0:03:00]}  c5 {[%clk 0:02:59]} 2. b3 {[%clk 0:02:59]}  Nc6 {[%clk 0:02:58]} 3. Bb2 {[%clk 0:02:58]}  e5 {[%clk 0:02:56]} 4. Bb5 {[%clk 0:02:57]}  d6 {[%clk 0:02:56]} 5. Ne2 {[%clk 0:02:56]}  Nf6 {[%clk 0:02:55]} 6. d3 {[%clk 0:02:53]}  Be7 {[%clk 0:02:54]} 7. O-O {[%clk 0:02:52]}  O-O {[%clk 0:02:53]} 8. Bxc6 {[%clk 0:02:52]}  bxc6 {[%clk 0:02:53]} 9. f4 {[%clk 0:02:53]}  exf4 {[%clk 0:02:53]} 10. Nxf4 {[%clk 0:02:53]}  Ng4 {[%clk 0:02:47]} 11. Qe2 {[%clk 0:02:43]}  Bf6 {[%clk 0:02:47]} 12. Bxf6 {[%clk 0:02:38]}  Qxf6 {[%clk 0:02:46]} 13. Nd2 {[%clk 0:02:37]}  Re8 {[%clk 0:01:52]} 14. h3 {[%clk 0:02:27]}  Qd4+ {[%clk 0:01:52]} 15. Kh1 {[%clk 0:02:25]}  Ne3 {[%clk 0:01:53]} 16. Rfe1 {[%clk 0:01:42]}  Nxc2 {[%clk 0:01:45]} 17. Nf3 {[%clk 0:01:42]}  Qf6 {[%clk 0:01:44]} 18. Qxc2 {[%clk 0:01:32]}  Qxf4 {[%clk 0:01:44]} 19. e5 {[%clk 0:01:32]}  Bxh3 {[%clk 0:01:42]} 20. exd6 {[%clk 0:01:32]}  Rxe1+ {[%clk 0:01:33]} 21. Rxe1 {[%clk 0:01:30]}  Bg4 {[%clk 0:01:33]} 22. Re4 {[%clk 0:01:12]}  Qh6+ {[%clk 0:01:29]} 23. Nh2 {[%clk 0:01:11]}  f5 {[%clk 0:01:25]} 24. Qc4+ {[%clk 0:01:08]}  Kf8 {[%clk 0:01:17]} 25. Re7 {[%clk 0:01:05]}  Qf6 {[%clk 0:01:15]} 26. Nxg4 {[%clk 0:00:44]}  fxg4 {[%clk 0:01:14]} 27. Qxg4 {[%clk 0:00:43]}  Re8 {[%clk 0:01:03]} 28. Rxe8+ {[%clk 0:00:29]}  Kxe8 {[%clk 0:01:03]} 29. Qc8+ {[%clk 0:00:20]}  Kf7 {[%clk 0:01:03]} 30. Qd7+ {[%clk 0:00:18]}  Kg6 {[%clk 0:01:01]} 31. Qe8+ {[%clk 0:00:18]}  Kh6 {[%clk 0:01:00]} 32. Qe3+ {[%clk 0:00:13]}  g5 {[%clk 0:00:59]} 33. d7 {[%clk 0:00:10]}  Qf1+ {[%clk 0:00:19]} 34. Kh2 {[%clk 0:00:10]}  Qf8 {[%clk 0:00:19]} 35. Qe6+ {[%clk 0:00:05]}  Kg7 {[%clk 0:00:19]} 36. Qe8 {[%clk 0:00:04]}  Qf4+ {[%clk 0:00:19]} 37. Kg1 {[%clk 0:00:05]}  Qc1+ {[%clk 0:00:15]} 38. Kf2 {[%clk 0:00:04]}  Qd2+ {[%clk 0:00:15]} 39. Kf1 {[%clk 0:00:04]}  Qd1+ {[%clk 0:00:13]} 40. Kf2 {[%clk 0:00:05]}  Qd2+ {[%clk 0:00:13]} 41. Qe2 {[%clk 0:00:05]}  Qf4+ {[%clk 0:00:13]} 42. Ke1 {[%clk 0:00:03]}  Qc1+ {[%clk 0:00:08]} 43. Kf2 {[%clk 0:00:02]}  Qf4+ {[%clk 0:00:08]} 44. Kg1 {[%clk 0:00:02]}  Qd4+ {[%clk 0:00:08]} 45. Kh2 {[%clk 0:00:01]}  Qxd7 {[%clk 0:00:09]} 46. Qe5+ {[%clk 0:00:01]}  Kf7 {[%clk 0:00:08]} 47. Qxg5 {[%clk 0:00:01]}  Qxd3 {[%clk 0:00:08]} 0-1


[Site "https://www.chess.com"]